bitfinex-derivatives/quotes_ETHF0:USTF0_20250502
["timestamp","ask_amount","ask_price","bid_price","bid_amount"]
[1746160963148,5.838,1840.4,1840.3,18.2022]
[1746160964150,3.58373269,1840.5,1840.4,1.08644]
[1746160964453,7.87780269,1840.7,1840.6,1.08633]
[1746160964750,7.87780269,1840.7,1840.5,1.08634]
[1746160964951,7.87780269,1840.7,1840.6,1.7506]
[1746160965155,7.87780269,1840.7,1840.6,2.5971]
[1746160965353,7.87780269,1840.7,1840.6,12.5971]
[1746160966052,6.79153269,1840.7,1840.6,13.68343]
[1746160967448,3.2078,1840.7,1840.6,13.68343]
[1746160969054,5.838,1840.8,1840.7,1.08627]
[1746160969255,5.838,1840.8,1840.7,13.62177]
[1746160970054,1.08621,1840.8,1840.7,12.5355]
[1746160970246,3.54121,1840.8,1840.7,2.5355]
[1746160970447,3.54121,1840.8,1840.7,0.8256]
[1746160971053,3.54121,1840.8,1840.7,1.91187]
[1746160971257,2.455,1840.8,1840.7,3.62177]
[1746160971456,1.6014,1840.8,1840.7,3.62177]
[1746160972159,3.2078,1840.9,1840.8,1.08621]
[1746160972359,3.2078,1840.9,1840.8,2.81111]
[1746160972559,4.29395,1840.9,1840.8,12.81111]
[1746160972859,1.08621,1840.8,1840.7,1.91183]
[1746160973054,3.62911,1840.8,1840.7,0.8256]
[1746160973252,3.62911,1840.8,1840.7,1.91187]
[1746160973454,3.62911,1840.8,1840.7,3.63677]
[1746160975060,3.62911,1840.8,1840.7,2.5505]
[1746160975259,3.62911,1840.8,1840.7,3.63677]
[1746160975462,3.62911,1840.8,1840.7,2.5505]
[1746160975661,3.62911,1840.8,1840.7,3.63677]
[1746160977662,3.62911,1840.8,1840.7,2.5505]
[1746160977962,3.62911,1840.8,1840.7,3.63677]
[1746160978660,4.29398,1840.9,1840.7,13.63677]
[1746160978961,4.29398,1840.9,1840.8,1.6061]
[1746160979162,4.849,1840.9,1840.8,2.69231]
[1746160979358,3.2078,1840.9,1840.8,2.69231]
[1746160979556,3.2078,1840.9,1840.8,12.69231]
[1746160979757,11.32573269,1841.0,1840.8,11.6061]
[1746160979964,11.32573269,1841.0,1840.9,2.4465]
[1746160980357,12.96693269,1841.0,1840.9,2.4465]
[1746160980556,1.08621,1840.8,1840.7,1.91183]
[1746160980756,1.08621,1840.8,1840.7,11.91183]
[1746160981263,2.78841,1840.8,1840.7,10.8256]
[1746160981562,2.78841,1840.8,1840.7,0.8256]
[1746160982061,2.78841,1840.8,1840.7,1.91187]
[1746160982263,2.78841,1840.8,1840.7,3.54827]
[1746160982759,1.7022,1840.8,1840.7,3.54827]
[1746160983059,4.29399,1840.9,1840.8,1.08621]
[1746160983361,5.99619,1840.9,1840.8,1.6364]
[1746160983663,1.08621,1840.8,1840.7,0.8256]
[1746160983963,2.76041,1840.8,1840.7,0.8256]
[1746160984463,1.08627,1840.7,1840.6,1.6617]
[1746160984656,2.5352,1840.7,1840.6,11.6617]
[1746160984852,6.82927,1840.7,1840.6,11.6617]
[1746160985058,4.29407,1840.7,1840.6,11.6617]
[1746160985258,3.2078,1840.7,1840.6,12.74803]
[1746160985551,4.29407,1840.7,1840.6,11.6617]
[1746160987971,4.29407,1840.7,1840.6,12.74803]
[1746160988266,4.29407,1840.7,1840.6,11.6617]
[1746160989763,4.29407,1840.7,1840.6,12.74803]
[1746160989964,4.29407,1840.7,1840.6,11.6617]
[1746160990365,4.29407,1840.7,1840.6,1.6617]
[1746160990568,4.29407,1840.7,1840.6,11.6617]
[1746160991263,1.08644,1840.5,1840.3,1.08648]
[1746160991569,1.08644,1840.5,1840.4,1.08644]
[1746160991970,2.81374,1840.5,1840.4,2.77404]
[1746160994269,2.81374,1840.5,1840.4,1.6876]
[1746160994475,1.08644,1840.4,1840.3,0.8301]
[1746160994664,2.77154,1840.4,1840.3,0.8301]
[1746160994974,1.08656,1840.2,1840.1,7.13008]
[1746160995264,1.08656,1840.2,1840.1,7.98238]
[1746160995570,1.08656,1840.2,1840.1,17.98238]
[1746160995775,1.08656,1840.2,1840.1,13.3838]
[1746160996172,2.77926,1840.2,1840.1,3.3838]
[1746160998173,2.77926,1840.2,1840.1,2.5492]
[1746160999370,5.98706,1840.2,1840.1,2.5492]
[1746161001477,4.29436,1840.2,1840.1,2.5492]
[1746161001678,3.2078,1840.2,1840.1,13.63582]
[1746161002080,3.2078,1840.2,1840.1,17.14782]
[1746161003083,3.25376578,1840.6,1840.1,16.98551]
[1746161003282,2.16742578,1840.6,1840.4,4.29422]
[1746161003482,1.08638,1840.5,1840.4,4.29422]
[1746161004076,1.08638,1840.5,1840.4,7.99022]
[1746161004383,1.08638,1840.5,1840.4,6.9038]
[1746161004584,2.16742578,1840.6,1840.4,6.9038]
[1746161004976,3.25375578,1840.6,1840.5,1.08638]
[1746161005283,3.25375578,1840.6,1840.4,4.2942]
[1746161005785,1.08633,1840.6,1840.4,4.2942]
[1746161006182,1.08633,1840.6,1840.4,11.5022]
[1746161007288,1.08631,1840.7,1840.5,1.08638]
[1746161007676,1.08633,1840.6,1840.5,1.08638]
[1746161008079,1.08633,1840.6,1840.5,3.696]
[1746161008583,1.08632,1840.7,1840.5,4.78237]
[1746161008782,1.08633,1840.6,1840.5,3.696]
[1746161009989,1.08633,1840.6,1840.5,4.78238]
[1746161010182,7.5605,1840.8,1840.5,4.78238]
[1746161010183,1.08631,1840.7,1840.5,4.78238]
[1746161010486,1.08631,1840.7,1840.6,4.29413]
[1746161011388,6.92422,1840.8,1840.7,1.08627]
[1746161012181,5.838,1840.8,1840.7,1.08627]
[1746161012388,1.08615,1840.9,1840.8,1.08621]
[1746161012581,1.08615,1840.9,1840.7,1.08622]
[1746161013085,1.08615,1840.9,1840.7,4.78222]
[1746161013388,1.08615,1840.9,1840.8,1.08621]
[1746161013979,1.08615,1840.9,1840.8,1.93961]
[1746161014886,1.08615,1840.9,1840.8,0.8534]
[1746161015285,1.08615,1840.9,1840.8,2.75311]
[1746161015786,1.08615,1840.9,1840.8,2.75309]
[1746161016887,1.08615,1840.9,1840.8,4.43809]
[1746161017089,6.92401,1841.2,1840.8,6.5597]
[1746161017388,12.5564,1841.4,1840.9,1.685]
[1746161017591,4.34499,1841.3,1841.0,40.8]
[1746161017779,1.08603,1841.1,1841.0,42.5074]
[1746161018285,1.08603,1841.1,1841.0,47.28949]
[1746161018683,2.71623,1841.1,1841.0,47.28949]
[1746161019080,2.71623,1841.1,1841.0,46.2034]
[1746161020393,1.08603,1841.1,1841.0,47.28949]
[1746161020894,1.08603,1841.1,1841.0,46.2034]
[1746161022799,1.08603,1841.1,1841.0,47.28949]
[1746161023306,1.08601,1841.2,1841.0,47.28949]
[1746161023498,1.08601,1841.2,1841.1,2.521]
[1746161023700,1.08601,1841.2,1841.1,3.3509]
[1746161023903,15.084,1841.4,1841.3,1.08589]
[1746161023904,1.08586,1841.4,1841.3,1.08589]
[1746161024100,7.18764373,1841.5,1841.4,1.08585]
[1746161024398,7.18764373,1841.5,1841.4,4.29365]
[1746161024598,7.18764373,1841.5,1841.4,1.08585]
[1746161024804,7.18764373,1841.5,1841.4,6.85285]
[1746161025099,7.18764373,1841.5,1841.4,14.04685]
[1746161025302,7.18764373,1841.5,1841.4,19.04685]
[1746161026401,3.54118,1841.9,1841.7,1.08566]
[1746161026605,3.54118,1841.9,1841.8,0.8704]
[1746161026804,3.54118,1841.9,1841.8,2.6192]
[1746161029713,2.4556,1841.9,1841.8,2.6192]
[1746161029910,3.54116,1841.9,1841.8,2.6192]
[1746161030111,3.54116,1841.9,1841.8,3.70482]
[1746161030312,3.54116,1841.9,1841.8,2.6192]
[1746161030516,3.54116,1841.9,1841.8,3.70482]
[1746161030715,3.54116,1841.9,1841.8,2.6192]
[1746161031308,2.4556,1841.9,1841.6,4.29352]
[1746161031504,2.73293,1841.8,1841.6,3.2078]
[1746161031709,2.73293,1841.8,1841.7,1.08568]
[1746161032008,2.73293,1841.8,1841.7,2.68338]
[1746161032614,2.73293,1841.8,1841.7,1.5977]
[1746161033113,2.73293,1841.8,1841.7,5.2937]
[1746161034005,2.73293,1841.8,1841.7,8.5015]
[1746161034209,2.73293,1841.8,1841.7,5.2937]
[1746161034516,2.73293,1841.8,1841.7,8.5015]
[1746161035218,1.6473,1841.8,1841.7,9.58718]
[1746161035516,2.73292,1841.8,1841.7,9.58718]
[1746161038014,2.73292,1841.8,1841.7,6.37938]
[1746161038224,2.73292,1841.8,1841.7,9.58718]
[1746161038518,2.73292,1841.8,1841.7,6.37938]
[1746161038722,2.73292,1841.8,1841.7,9.58718]
[1746161039717,2.73292,1841.8,1841.7,8.5015]
[1746161040018,2.73292,1841.8,1841.7,6.37938]
[1746161040420,2.73292,1841.8,1841.7,5.2937]
[1746161040720,2.73292,1841.8,1841.7,6.37938]
[1746161040924,2.73292,1841.8,1841.7,5.2937]
[1746161041109,2.73292,1841.8,1841.7,6.37938]
[1746161041515,2.73292,1841.8,1841.7,5.2937]
[1746161041715,2.73292,1841.8,1841.7,6.37938]
[1746161044624,2.73292,1841.8,1841.7,5.2937]
[1746161045519,2.73292,1841.8,1841.7,6.37938]
[1746161045725,2.73292,1841.8,1841.7,5.2937]
[1746161046025,2.73292,1841.8,1841.7,6.37938]
[1746161047125,2.73292,1841.8,1841.7,5.2937]
[1746161048426,2.73292,1841.8,1841.7,6.37938]
[1746161048931,2.73292,1841.8,1841.7,5.2937]
[1746161049226,2.73292,1841.8,1841.7,1.5977]
[1746161050221,1.6473,1841.8,1841.7,6.37938]
[1746161050415,0.8339,1841.9,1841.8,1.08562]
[1746161050620,1.91947,1841.9,1841.8,3.3404]
[1746161051725,3.66287,1841.9,1841.8,3.3404]
[1746161054130,1.08566,1841.8,1841.6,4.29348]
[1746161054330,2.82076,1841.8,1841.6,4.29348]
[1746161054530,1.7351,1841.7,1841.6,4.29348]
[1746161054728,2.82078,1841.7,1841.6,4.29348]
[1746161055025,1.7351,1841.7,1841.6,4.29348]
[1746161055232,1.91951,1841.9,1841.7,1.08564]
[1746161055431,1.08562,1841.8,1841.7,1.08564]
[1746161056131,1.08562,1841.8,1841.7,4.78164]
[1746161056330,3.6546,1841.9,1841.8,1.08562]
[1746161056634,3.6546,1841.9,1841.7,4.78163]
[1746161056831,3.6546,1841.9,1841.8,1.08562]
[1746161057527,2.569,1841.9,1841.8,2.67962]
[1746161057727,3.65456,1841.9,1841.8,2.67962]
[1746161058227,3.65456,1841.9,1841.8,6.37562]
[1746161058427,2.569,1841.9,1841.8,6.37562]
[1746161059036,3.65456,1841.9,1841.8,6.37562]
[1746161059236,5.838,1842.2,1841.8,8.4978]
[1746161059424,3.67119,1842.1,1841.9,2.67952]
[1746161060036,1.0855,1842.0,1841.9,2.67952]
[1746161060236,1.0855,1842.0,1841.9,1.594]
[1746161060442,2.7354,1842.0,1841.9,1.594]
[1746161061031,2.7354,1842.0,1841.9,5.29]
[1746161062325,5.838,1842.2,1841.9,5.29]
[1746161062529,1.0855,1842.0,1841.9,3.696]
[1746161062726,1.0855,1842.0,1841.9,4.78156]
[1746161062938,2.7354,1842.0,1841.9,4.78156]
[1746161063136,2.7354,1842.0,1841.9,3.696]
[1746161064940,1.6499,1842.0,1841.9,4.78156]
[1746161065139,1.6499,1842.0,1841.9,1.08556]
[1746161068939,2.7354,1842.0,1841.8,5.89108]
[1746161069139,1.6499,1842.0,1841.8,3.2078]
[1746161069335,1.6581,1842.1,1841.8,3.2078]
[1746161069336,2.78926,1841.9,1841.8,4.29342]
[1746161069747,2.78926,1841.9,1841.8,3.2078]
[1746161071543,1.7037,1841.9,1841.8,4.29342]
[1746161072045,2.78926,1841.9,1841.8,4.29342]
[1746161072745,8.88044773,1841.9,1841.8,4.29342]
[1746161074343,8.88044773,1841.9,1841.8,3.2078]
[1746161075043,8.88044773,1841.9,1841.3,3.2078]
[1746161075044,11.00268773,1841.9,1841.3,3.2078]
[1746161075345,1.08579,1841.5,1841.4,3.53671]
[1746161076147,1.08579,1841.5,1841.4,7.23271]
[1746161076347,1.08579,1841.5,1841.4,6.1469]
[1746161077150,1.08579,1841.5,1841.4,2.4509]
[1746161077552,1.08579,1841.5,1841.4,3.53675]
[1746161079951,2.4541,1841.5,1841.4,3.53675]
[1746161082048,3.53989,1841.5,1841.4,3.53675]
[1746161083846,3.53989,1841.5,1841.4,2.4509]
[1746161084052,3.53989,1841.5,1841.4,0.8558]
[1746161084853,3.53989,1841.5,1841.4,1.94165]
[1746161085053,3.53989,1841.5,1841.4,0.8558]
[1746161085949,3.53989,1841.5,1841.4,2.4947]
[1746161086155,3.53989,1841.5,1841.4,3.58055]
[1746161086555,3.53989,1841.5,1841.4,2.4947]
[1746161087656,3.53989,1841.5,1841.4,0.8558]
[1746161087859,4.41359,1841.5,1841.4,0.8558]
[1746161088649,1.08585,1841.4,1841.3,6.90837]
[1746161088853,2.73025,1841.4,1841.3,6.90837]
[1746161089360,2.73025,1841.4,1841.3,10.60437]
[1746161089652,2.73025,1841.4,1841.3,9.5185]
[1746161089856,1.6444,1841.4,1841.3,10.60441]
[1746161090759,2.73025,1841.4,1841.3,10.60441]
[1746161091055,1.6444,1841.4,1841.3,10.60441]
[1746161091255,2.81892,1841.5,1841.4,1.08585]
[1746161091449,1.5883,1841.5,1841.4,3.62205]
[1746161092958,2.67409,1841.5,1841.4,3.62205]
[1746161093258,6.92375,1841.6,1841.5,1.08579]
[1746161093451,5.838,1841.6,1841.5,2.71819]
[1746161093757,5.838,1841.6,1841.5,9.40499]
[1746161094259,5.838,1841.6,1841.5,13.10099]
[1746161095661,6.92374,1841.6,1841.5,13.10099]
[1746161095863,8.57124,1841.6,1841.5,9.62199]
[1746161096255,8.57124,1841.6,1841.5,5.92599]
[1746161097761,8.57124,1841.6,1841.5,1.6324]
[1746161099061,2.73324,1841.6,1841.5,1.6324]
[1746161099864,2.73324,1841.6,1841.5,2.71819]
[1746161100467,1.6475,1841.6,1841.5,2.71819]
[1746161101267,2.73324,1841.6,1841.5,2.71819]
[1746161101759,2.73324,1841.6,1841.5,1.6324]
[1746161101958,1.08579,1841.5,1841.4,1.89751]
[1746161102155,1.7501,1841.5,1841.4,7.27761]
[1746161102365,1.08578,1841.6,1841.5,1.08579]
[1746161102665,1.08578,1841.6,1841.5,2.79359]
[1746161103063,3.56169,1841.7,1841.6,1.08574]
[1746161103263,3.56169,1841.7,1841.6,3.61094]
[1746161103465,3.56169,1841.7,1841.6,2.5252]
[1746161105064,1.08574,1841.6,1841.5,1.08576]
[1746161105271,2.74694,1841.6,1841.5,2.79356]
[1746161106070,2.74694,1841.6,1841.5,6.48956]
[1746161106271,2.74694,1841.6,1841.5,9.69736]
[1746161107870,2.74694,1841.6,1841.5,9.69739]
[1746161108176,2.74694,1841.6,1841.5,8.6116]
[1746161109173,2.74694,1841.6,1841.5,6.48959]
[1746161109471,2.74694,1841.6,1841.5,5.4038]
[1746161109963,1.6612,1841.6,1841.5,6.48959]
[1746161110167,1.90049,1841.7,1841.6,1.08574]
[1746161110368,1.90049,1841.7,1841.6,2.70794]
[1746161110762,0.8148,1841.7,1841.6,2.70794]
[1746161110964,1.90048,1841.7,1841.6,2.70794]
[1746161111475,2.76666,1841.8,1841.7,1.08568]
[1746161111675,2.76666,1841.8,1841.7,4.33078]
[1746161113278,1.08572,1841.7,1841.5,1.08576]
[1746161113464,1.7518,1841.7,1841.6,1.08574]
[1746161113775,1.7518,1841.7,1841.6,2.66654]
[1746161114168,7.74099,1841.9,1841.7,1.08566]
[1746161114370,1.08562,1841.8,1841.7,3.2451]
[1746161114973,1.08574,1841.6,1841.5,3.2078]
[1746161115174,1.08579,1841.5,1841.4,5.37893]
[1746161115370,1.08579,1841.5,1841.4,8.58673]
[1746161115571,1.08579,1841.5,1841.4,0.8241]
[1746161115875,1.08579,1841.5,1841.4,4.0319]
[1746161116083,1.08585,1841.4,1841.3,5.1366]
[1746161116380,1.08585,1841.4,1841.2,5.14333]
[1746161116680,6.71614,1841.7,1841.2,5.14333]
[1746161116681,3.56901,1841.3,1841.2,5.14333]
[1746161117080,3.56901,1841.3,1841.2,8.83933]
[1746161117979,3.56901,1841.3,1841.2,6.9038]
[1746161118178,3.56901,1841.3,1841.2,3.2078]
[1746161119379,16.5289,1841.3,1840.7,3.696]
[1746161119586,4.29401,1840.8,1840.7,4.5307]
[1746161119772,3.2078,1840.8,1840.7,4.5307]
[1746161119974,4.29401,1840.8,1840.7,4.5307]
[1746161121471,5.95421,1840.8,1840.7,4.5307]
[1746161122080,4.868,1840.8,1840.7,7.27847]
[1746161122582,1.6602,1840.8,1840.7,7.27847]
[1746161122784,2.74641,1840.8,1840.7,7.27847]
[1746161123086,2.74641,1840.8,1840.7,6.1922]
[1746161123879,2.74641,1840.8,1840.7,4.5307]
[1746161124277,3.55681,1840.8,1840.7,3.696]
[1746161125174,1.08627,1840.7,1840.6,40.8]
[1746161125383,2.79367,1840.7,1840.6,40.8]
[1746161125884,2.79367,1840.7,1840.6,42.5464]
[1746161126593,1.08626,1840.8,1840.6,43.63273]
[1746161126786,1.08626,1840.8,1840.7,1.7464]
[1746161127084,1.7074,1840.9,1840.8,1.08621]
[1746161127388,2.79356,1840.9,1840.8,0.8485]
[1746161127786,2.79356,1840.9,1840.8,2.5009]
[1746161128888,2.79356,1840.9,1840.8,3.58711]
[1746161129089,2.79356,1840.9,1840.8,2.5009]
[1746161129890,2.79356,1840.9,1840.8,3.58711]
[1746161130187,2.79356,1840.9,1840.8,6.1969]
[1746161131798,5.838,1841.0,1840.9,1.08615]
[1746161131992,6.92409,1841.0,1840.9,1.08615]
[1746161132184,6.92409,1841.0,1840.9,2.79915]
[1746161132385,6.92409,1841.0,1840.9,3.58865]
[1746161132583,6.92409,1841.0,1840.9,2.5025]
[1746161132786,8.67369,1841.0,1840.9,2.5025]
[1746161133089,8.67369,1841.0,1840.9,3.58865]
[1746161133297,8.67369,1841.0,1840.9,6.1985]
[1746161133688,8.67369,1841.0,1840.9,3.696]
[1746161134194,2.83569,1841.0,1840.9,3.696]
[1746161136392,2.83569,1841.0,1840.9,5.2962]
[1746161136594,2.83569,1841.0,1840.9,6.38235]
[1746161136895,1.08605,1841.1,1841.0,1.08607]
[1746161137096,1.08605,1841.1,1841.0,3.52717]
[1746161137391,1.08605,1841.1,1841.0,7.22317]
[1746161137591,1.08605,1841.1,1841.0,6.1371]
[1746161138294,1.08605,1841.1,1841.0,7.22319]
[1746161138696,1.08605,1841.1,1841.0,6.1371]
[1746161139497,4.29371,1841.3,1841.1,1.08599]
[1746161139687,4.29371,1841.3,1841.0,9.6111]
[1746161139688,6.02261,1841.3,1841.2,3.65297]
[1746161140096,6.02261,1841.3,1841.2,7.34897]
[1746161140491,6.02261,1841.3,1841.2,6.263]
[1746161140988,6.02261,1841.3,1841.2,3.696]
[1746161141193,1.08603,1841.1,1841.0,5.40095]
[1746161141595,1.08603,1841.1,1841.0,4.56009]
[1746161141797,2.81493,1841.1,1841.0,4.56009]
[1746161141997,1.7289,1841.1,1841.0,4.56009]
[1746161142204,1.7289,1841.1,1841.0,7.09339]
[1746161142496,0.8354,1841.2,1841.0,7.09339]
[1746161142497,0.8354,1841.2,1841.1,1.08603]
[1746161142799,2.4559,1841.2,1841.1,2.79703]
[1746161143190,3.2078,1841.3,1841.2,1.08597]
[1746161143395,4.29371,1841.3,1841.2,2.79697]
[1746161143695,4.29371,1841.3,1841.2,1.711]
[1746161144096,4.29371,1841.3,1841.2,5.407]
[1746161144799,4.29371,1841.3,1841.2,6.49297]
[1746161145500,5.98621,1841.3,1841.2,6.49297]
[1746161145794,5.98621,1841.3,1841.2,5.407]
[1746161145999,5.98621,1841.3,1841.2,6.49297]
[1746161146199,5.98621,1841.3,1841.2,2.79697]
[1746161146703,5.98621,1841.3,1841.2,1.711]
[1746161146903,4.9003,1841.3,1841.2,2.79697]
[1746161147095,4.9003,1841.3,1841.2,6.49297]
[1746161147401,1.6925,1841.3,1841.2,6.49297]
[1746161147604,2.77841,1841.3,1841.2,6.49297]
[1746161148998,2.77841,1841.3,1841.2,5.407]
[1746161149199,2.77841,1841.3,1841.2,3.696]
[1746161150007,2.77841,1841.3,1841.2,4.78197]
[1746161150207,2.77841,1841.3,1841.2,3.696]
[1746161150407,2.77841,1841.3,1841.2,4.78197]
[1746161150612,2.77841,1841.3,1841.2,3.696]
[1746161151207,2.77841,1841.3,1841.2,4.78197]
[1746161151408,2.77841,1841.3,1841.2,6.39187]
[1746161153612,2.77841,1841.3,1841.2,5.3059]
[1746161153812,2.77841,1841.3,1841.2,3.696]
[1746161154311,1.08603,1841.1,1841.0,4.56009]
[1746161154510,1.08603,1841.1,1841.0,3.474]
[1746161154912,2.82843,1841.1,1841.0,3.474]
[1746161155114,1.08609,1841.0,1840.9,3.2078]
[1746161155412,2.82849,1841.0,1840.9,3.2078]
[1746161156410,1.08615,1840.9,1840.8,1.6676]
[1746161157111,1.08615,1840.9,1840.8,5.3636]
[1746161159113,4.29395,1840.9,1840.8,1.6676]
[1746161160116,1.08627,1840.7,1840.6,44.0078]
[1746161161314,1.08627,1840.7,1840.6,40.8]
[1746161162716,1.08627,1840.7,1840.6,41.88633]
[1746161162909,1.08626,1840.8,1840.6,41.88633]
[1746161163513,1.08626,1840.8,1840.6,40.8]
[1746161163716,1.08626,1840.8,1840.6,41.8863]
[1746161165717,1.08626,1840.8,1840.6,40.8]
[1746161166417,3.5896104,1841.0,1840.6,40.8]
[1746161166619,3.5896104,1841.0,1840.9,1.08615]
[1746161166917,4.6757004,1841.0,1840.9,1.08615]
[1746161167310,4.6757004,1841.0,1840.8,1.08616]
[1746161168319,4.6757004,1841.0,1840.9,1.08615]
[1746161169221,3.5896104,1841.0,1840.9,1.08615]
[1746161169812,1.08605,1841.1,1840.9,1.08615]
[1746161170008,1.08609,1841.0,1840.8,1.08621]
[1746161170217,1.08609,1841.0,1840.9,3.696]
[1746161171217,1.08615,1840.9,1840.8,3.469]
[1746161171522,1.08615,1840.9,1840.8,4.55521]
[1746161171920,1.08615,1840.9,1840.8,3.469]
[1746161172122,1.08621,1840.8,1840.6,41.88627]
[1746161172311,1.08621,1840.8,1840.7,1.08627]
[1746161173019,1.08619,1840.9,1840.7,1.08627]
[1746161173219,1.08619,1840.9,1840.8,1.08621]
[1746161174320,1.08619,1840.9,1840.7,1.08621]
[1746161174617,1.08619,1840.9,1840.8,1.08621]
[1746161175218,1.08619,1840.9,1840.7,1.08621]
[1746161175917,1.08621,1840.8,1840.7,1.08621]
[1746161176228,1.08621,1840.8,1840.7,4.78221]
[1746161177721,1.08621,1840.8,1840.7,3.696]
[1746161178123,1.08621,1840.8,1840.6,41.8863]
[1746161179121,15.3505104,1841.1,1840.6,41.8863]
[1746161179122,3.5896104,1841.0,1840.6,41.8863]
[1746161179526,1.08625,1840.8,1840.6,41.8863]
[1746161180424,3.5896104,1841.0,1840.6,41.8863]
[1746161180726,1.08627,1840.7,1840.6,41.8863]
[1746161182226,1.08627,1840.7,1840.6,40.8]
[1746161185127,2.69587,1840.7,1840.6,40.8]
[1746161186123,1.08633,1840.6,1840.5,3.696]
[1746161186328,2.69593,1840.6,1840.5,3.696]
[1746161186529,2.69593,1840.6,1840.5,44.496]
[1746161188132,2.69593,1840.6,1840.5,45.58238]
[1746161188329,1.6096,1840.6,1840.5,45.58238]
[1746161188731,2.69593,1840.6,1840.5,45.58238]
[1746161189433,2.69593,1840.6,1840.5,44.496]
[1746161190225,2.69593,1840.6,1840.5,40.8]
[1746161191237,2.69593,1840.6,1840.5,44.496]
[1746161191735,2.69593,1840.6,1840.5,45.58238]
[1746161191937,1.6096,1840.6,1840.5,45.58238]
[1746161192532,2.69593,1840.6,1840.5,45.58238]
[1746161193036,1.6096,1840.6,1840.5,45.58238]
[1746161193239,2.69593,1840.6,1840.5,45.58238]
[1746161194143,2.69593,1840.6,1840.5,41.88638]
[1746161195141,2.69593,1840.6,1840.5,45.58238]
[1746161196751,1.6096,1840.6,1840.5,45.58238]
[1746161196951,1.6096,1840.6,1840.5,47.23008]
[1746161199157,1.6096,1840.6,1840.5,43.53408]
[1746161199358,6.6673,1840.8,1840.7,1.08627]
[1746161199655,9.37901,1840.8,1840.7,1.08627]
[1746161199852,5.838,1840.8,1840.7,1.08627]
[1746161200054,5.838,1840.8,1840.7,2.69667]
[1746161200250,9.4276104,1840.8,1840.7,6.39267]
[1746161200449,9.4276104,1840.8,1840.7,9.86167]
[1746161202059,9.4276104,1840.8,1840.7,50.66167]
[1746161202457,9.4276104,1840.8,1840.7,53.86947]
[1746161204161,5.838,1840.8,1840.7,53.86947]
[1746161204563,1.5799,1840.9,1840.8,1.08621]
[1746161205058,1.5799,1840.9,1840.8,4.78221]
[1746161205261,1.5799,1840.9,1840.8,6.48261]
[1746161209864,1.87729,1841.0,1840.9,1.08615]
[1746161210064,3.50779,1841.0,1840.9,3.61225]
[1746161211161,3.50779,1841.0,1840.9,7.30825]
[1746161212766,3.50779,1841.0,1840.9,3.696]
[1746161213265,1.08615,1840.9,1840.8,1.08616]
[1746161213561,2.67145,1840.9,1840.8,1.08616]
[1746161213766,1.5853,1840.9,1840.8,2.77766]
[1746161213966,1.5853,1840.9,1840.8,43.57766]
[1746161214166,1.5853,1840.9,1840.8,47.27366]
[1746161215970,2.67145,1840.9,1840.8,47.27366]
[1746161216270,1.08607,1841.1,1840.9,1.08609]
[1746161216567,1.08609,1841.0,1840.9,3.56791]
[1746161217071,1.08609,1841.0,1840.9,7.26391]
[1746161218271,1.08609,1841.0,1840.9,6.1778]
[1746161218468,2.67489,1841.0,1840.9,6.1778]
[1746161218876,2.67489,1841.0,1840.9,7.26395]
[1746161220179,2.67489,1841.0,1840.9,3.696]
[1746161220369,5.88269,1841.0,1840.9,3.696]
[1746161221071,1.08615,1840.9,1840.8,40.8]
[1746161221371,4.32755,1840.9,1840.8,40.8]
[1746161222575,1.08627,1840.7,1840.6,5.1138]
[1746161222972,1.08627,1840.7,1840.6,40.8]
[1746161223372,2.70957,1840.7,1840.6,40.8]
[1746161228879,1.6233,1840.7,1840.6,41.88633]
[1746161229079,1.6233,1840.7,1840.6,43.59453]
[1746161231081,1.6233,1840.7,1840.6,42.5082]
[1746161231082,2.70957,1840.7,1840.6,42.5082]
[1746161232087,2.70957,1840.7,1840.6,43.59453]
[1746161232286,1.6233,1840.7,1840.6,43.59453]
[1746161233689,2.70957,1840.7,1840.6,43.59453]
[1746161234486,2.70957,1840.7,1840.6,42.5082]
[1746161235390,2.70957,1840.7,1840.6,40.8]
[1746161240680,6.2991804,1840.7,1840.6,40.8]
[1746161244084,2.70957,1840.7,1840.6,40.8]
[1746161244489,1.08633,1840.6,1840.5,2.5611]
[1746161244689,3.51833,1840.6,1840.5,2.5611]
[1746161245088,3.51833,1840.6,1840.5,43.3611]
[1746161249396,3.51833,1840.6,1840.5,40.8]
[1746161249595,7.52023,1840.6,1840.5,40.8]
[1746161250297,1.0865,1840.4,1840.2,6.18173]
[1746161250807,1.0865,1840.4,1840.3,40.8]
[1746161251298,1.0865,1840.4,1840.3,41.8865]
[1746161251501,1.0865,1840.4,1840.3,43.5127]
[1746161254296,1.6682,1840.5,1840.3,42.4262]
[1746161254498,7.6488104,1840.6,1840.5,1.08638]
[1746161254802,7.8837404,1840.6,1840.4,4.33571]
[1746161255004,7.8837404,1840.6,1840.5,1.7369]
[1746161256205,4.6759404,1840.6,1840.5,1.7369]
[1746161256906,6.3168404,1840.6,1840.5,1.7369]
[1746161258011,2.72723,1840.6,1840.5,1.7369]
[1746161261809,5.93503,1840.6,1840.5,1.7369]
[1746161262712,1.08638,1840.5,1840.4,1.6643]
[1746161262911,3.54648,1840.5,1840.4,1.6643]
[1746161263209,3.54648,1840.5,1840.4,5.3603]
[1746161263409,3.54648,1840.5,1840.4,6.9831]